bitfinex/quotes_ETHUSD_20260208
["timestamp","ask_amount","ask_price","bid_price","bid_amount"]
[1770551797532,1.44841027,2133.3,2132.3,0.0011]
[1770551798932,1.44841027,2133.3,2133.0,0.0011]
[1770551799115,1.44841027,2133.3,2132.3,0.0011]
[1770551799116,2.62035851,2133.2,2132.3,0.0011]
[1770551799319,1.44841027,2133.1,2132.3,0.0011]
[1770551799521,1.17194824,2133.2,2132.3,0.0011]
[1770551799724,1.1718656,2133.4,2132.3,1.51131554]
[1770551799912,2.62027587,2133.4,2132.3,1.51131554]
[1770551800334,1.44841027,2133.3,2132.3,1.51131554]
[1770551801032,1.44841027,2133.3,2132.3,0.0011]
[1770551802139,1.44841027,2133.1,2132.3,0.0011]
[1770551804130,1.44841027,2132.9,2132.3,0.0011]
[1770551804332,1.1720439,2133.1,2132.3,0.0011]
[1770551804516,1.44841027,2133.5,2132.3,1.51131554]
[1770551804840,1.44841027,2133.5,2132.3,0.0011]
[1770551806315,1.44841027,2133.3,2132.3,0.0011]
[1770551809043,1.44841027,2133.1,2132.3,0.0011]
[1770551810462,1.44841027,2133.1,2132.5,0.0011]
[1770551810748,1.44841027,2133.0,2132.5,0.0011]
[1770551811045,1.44841027,2132.8,2132.5,0.0011]
[1770551811356,1.44841027,2132.8,2132.2,0.0011]
[1770551811642,1.44841027,2132.8,2132.0,0.0011]
[1770551812960,2.62052335,2132.9,2132.0,0.0011]
[1770551813651,2.62055848,2132.9,2132.0,0.0011]
[1770551813860,1.17214821,2132.9,2132.0,1.51131554]
[1770551815755,4.68826466,2133.0,2132.0,2.68387638]
[1770551816258,6.13667493,2133.0,2132.0,2.6839204]
[1770551817151,6.13667493,2133.0,2132.0,1.51131554]
[1770551819347,1.44841027,2132.9,2132.0,1.51131554]
[1770551819753,1.44841027,2132.9,2132.0,0.0011]
[1770551820754,1.17216804,2132.8,2132.0,0.0011]
[1770551821059,1.44841027,2132.7,2132.0,0.0011]
[1770551822669,1.17216804,2132.8,2131.8,0.0011]
[1770551822670,1.44841027,2132.5,2131.8,0.0011]
[1770551822840,1.44841027,2132.1,2131.3,0.0011]
[1770551823041,1.44841027,2131.5,2131.1,0.0011]
[1770551823368,1.44841027,2131.5,2130.2,1.17466855]
[1770551823569,1.44841027,2131.5,2130.2,1.1746612]
[1770551823743,1.48849327,2131.2,2130.2,0.0011]
[1770551824141,0.040083,2130.9,2130.2,0.0011]
[1770551824358,1.44841027,2130.8,2130.2,0.0011]
[1770551824573,1.44841027,2131.1,2130.2,0.0011]
[1770551824735,2.62156841,2131.0,2130.2,0.0011]
[1770551827276,1.54564165,2130.9,2130.2,0.0011]
[1770551827872,4.45115814,2131.0,2130.2,0.0011]
[1770551828075,5.99679979,2131.0,2130.2,0.0011]
[1770551828779,1.54564165,2130.9,2130.2,0.0011]
[1770551829283,1.17326825,2130.8,2130.2,0.0011]
[1770551829586,2.7189099,2130.8,2130.2,0.0011]
[1770551830084,1.54564165,2130.7,2130.2,0.0011]
[1770551831054,1.58572465,2130.7,2130.0,0.0011]
[1770551831282,1.54564165,2130.5,2130.0,0.0011]
[1770551831780,1.17337839,2130.6,2130.0,0.0011]
[1770551831983,2.70070955,2130.8,2130.0,0.0011]
[1770551832169,4.69190104,2131.4,2130.0,1.55484067]
[1770551832170,1.17304804,2131.2,2130.0,1.55484067]
[1770551832371,5.97945921,2131.2,2130.0,1.55484067]
[1770551833787,5.97945921,2131.2,2130.0,2.72854533]
[1770551834293,5.97945921,2131.2,2130.0,1.55484067]
[1770551834583,5.97945921,2131.2,2130.2,0.001]
[1770551834792,0.002,2131.0,2130.2,0.001]
[1770551838011,0.002,2131.0,2130.2,1.55474067]
[1770551838178,0.002,2131.0,2130.3,1.55374067]
[1770551838586,0.002,2131.2,2130.3,1.55374067]
[1770551839598,0.002,2131.2,2130.7,2.72706399]
[1770551839780,0.002,2131.2,2130.8,1.55374067]
[1770551839989,0.002,2132.1,2130.8,1.55374067]
[1770551841099,0.002,2132.1,2131.1,1.55374067]
[1770551841284,0.002,2132.1,2131.3,1.55374067]
[1770551841684,0.002,2132.1,2131.5,1.55374067]
[1770551843297,1.17315128,2132.9,2131.5,1.55374067]
[1770551843808,0.001,2132.9,2131.7,1.55374067]
[1770551845310,1.52841117,2132.9,2131.5,2.72658404]
[1770551845721,1.17227797,2132.6,2131.5,6.00558404]
[1770551845884,2.69967628,2132.7,2131.5,6.00558404]
[1770551846519,2.69967628,2132.7,2131.5,4.83274067]
[1770551846722,1.52741117,2132.6,2131.2,2.7267614]
[1770551847227,1.52741117,2132.4,2131.2,1.55374067]
[1770551847820,1.1724429,2132.3,2131.2,1.55374067]
[1770551848400,2.69985407,2132.3,2131.2,1.55374067]
[1770551850412,1.52741117,2132.2,2131.1,3.279]
[1770551851005,1.52741117,2132.2,2131.0,0.001]
[1770551851326,1.52741117,2132.2,2131.0,1.55474067]
[1770551851703,1.52741117,2132.2,2131.0,2.72789214]
[1770551851909,1.1724429,2132.3,2131.2,2.72677806]
[1770551852116,6.21718277,2132.4,2131.2,2.72677806]
[1770551854125,4.45138791,2132.5,2131.3,1.55374067]
[1770551854341,4.45138791,2132.5,2131.4,2.72667864]
[1770551855219,4.45138791,2132.5,2131.5,1.55374067]
[1770551856440,4.45138791,2132.5,2131.6,1.17282792]
[1770551857358,0.002,2132.7,2131.7,1.55777409]
[1770551857504,1.17422887,2132.7,2131.7,1.55777409]
[1770551857911,1.17423041,2132.7,2131.7,1.55777409]
[1770551858510,0.002,2132.7,2131.8,2.73049198]
[1770551858711,0.002,2132.7,2131.9,1.55777409]
[1770551859910,0.002,2132.5,2131.9,1.55777409]
[1770551860124,0.002,2132.5,2131.9,4.83577409]
[1770551860531,1.412716,2132.5,2131.6,0.001]
[1770551861914,1.412716,2132.5,2131.6,1.17382553]
[1770551862526,0.002,2132.5,2131.6,1.55877409]
[1770551864048,0.002,2132.5,2131.8,1.55777409]
[1770551864246,0.002,2132.5,2132.0,1.55777409]
[1770551864432,0.002,2132.5,2132.1,1.17255288]
[1770551864916,0.002,2132.5,2132.0,2.73033911]
[1770551867436,0.002,2132.5,2132.1,1.55777409]
[1770551867738,0.002,2132.7,2132.1,1.55777409]
[1770551868635,0.002,2132.7,2132.1,2.73029361]
[1770551868836,0.002,2132.7,2132.0,1.17256746]
[1770551869539,0.002,2132.7,2132.1,1.17255061]
[1770551872753,0.002,2132.7,2132.1,2.7303247]
[1770551873442,0.002,2132.5,2132.1,2.7303247]
[1770551873632,0.002,2132.7,2132.1,2.7303247]
[1770551876130,0.002,2132.7,2132.1,1.17254946]
[1770551876632,0.002,2132.7,2132.1,2.73032355]
[1770551876830,0.002,2132.7,2132.2,1.55777409]
[1770551878463,0.002,2132.7,2132.3,2.73021699]
[1770551878760,0.001,2132.9,2132.4,3.277]
[1770551879951,0.001,2132.9,2132.5,1.55777409]
[1770551880152,0.001,2133.5,2132.5,1.55777409]
[1770551880357,1.17278399,2133.5,2132.5,1.55777409]
[1770551880553,0.001,2133.5,2132.6,1.17227797]
[1770551880741,0.001,2133.5,2132.6,2.73005206]
[1770551882172,1.411716,2133.5,2132.4,4.44934492]
[1770551882371,1.411716,2133.5,2132.4,3.277]
[1770551882659,1.410716,2133.3,2132.4,4.44938656]
[1770551883561,1.410716,2133.3,2132.1,4.4495526]
[1770551884254,1.410716,2133.3,2132.1,4.44951429]
[1770551884556,1.410716,2133.3,2132.3,1.55777409]
[1770551884557,1.17194824,2133.2,2132.3,1.55777409]
[1770551884759,1.410716,2133.3,2132.3,1.55777409]
[1770551885336,1.410716,2133.3,2132.2,1.17249621]
[1770551885541,1.410716,2133.3,2132.3,0.001]
[1770551885869,1.452799,2133.3,2132.3,0.001]
[1770551886172,1.40216987,2133.2,2132.3,0.001]
[1770551886854,1.40216987,2133.0,2132.3,0.001]
[1770551887662,1.17197266,2133.2,2132.3,0.001]
[1770551887845,4.4509366,2133.3,2132.3,1.39676361]
[1770551888955,1.40216987,2133.2,2132.3,0.001]
[1770551890966,1.40216987,2133.0,2132.3,0.001]
[1770551894475,1.4384372,2132.8,2132.3,0.001]
[1770551895946,1.4384372,2132.8,2132.0,0.001]
[1770551896761,1.4384372,2132.6,2132.0,0.001]
[1770551897976,1.172223,2132.7,2132.0,0.001]
[1770551898270,4.68829571,2133.0,2132.0,1.39660606]
[1770551898474,4.68829571,2133.0,2132.2,0.0011]
[1770551899690,6.12673291,2133.0,2132.2,0.0011]
[1770551899991,1.4384372,2132.9,2132.2,0.0011]
[1770551900784,1.17216804,2132.8,2132.2,0.0011]
[1770551902983,1.4394372,2133.1,2132.2,0.0011]
[1770551906984,1.17205813,2133.0,2132.2,0.0011]
[1770551907169,2.61049533,2133.0,2132.2,0.0011]
[1770551908981,1.4384372,2132.9,2132.2,0.0011]
[1770551909188,1.17216804,2132.8,2132.2,0.0011]
[1770551909392,2.61060524,2132.8,2132.2,0.0011]
[1770551909772,2.56060524,2132.8,2132.2,0.0011]
[1770551910074,1.12216804,2132.8,2132.2,1.39670606]
[1770551910275,1.17304361,2133.1,2132.2,1.39670606]
[1770551911258,0.001,2133.1,2132.4,0.001]
[1770551911462,0.002,2132.8,2132.4,0.001]
[1770551916297,1.51856688,2132.8,2132.4,0.001]
[1770551917578,2.68878988,2132.7,2132.4,0.001]
[1770551918603,1.172223,2132.7,2132.4,0.001]
[1770551918893,1.17420524,2132.8,2132.4,0.001]
[1770551919075,2.69077212,2132.8,2132.4,0.001]
[1770551919488,1.51656688,2132.7,2132.4,0.001]
[1770551919790,2.68883912,2132.7,2132.4,0.001]
[1770551921204,1.51656688,2132.6,2132.0,0.001]
[1770551921488,1.51656688,2132.6,2131.6,0.001]
[1770551921667,1.51656688,2132.4,2131.6,0.001]
[1770551923902,1.1724429,2132.3,2131.6,0.001]
[1770551924101,1.51656688,2132.2,2131.6,0.001]
[1770551924789,1.51656688,2132.2,2131.8,0.001]
[1770551926718,2.68911976,2132.1,2131.8,0.001]
[1770551926882,1.51656688,2132.0,2131.8,0.001]
[1770551927505,0.002,2132.6,2131.8,1.50615944]
[1770551928085,1.17428865,2132.6,2131.8,1.50615944]
[1770551928911,0.002,2132.6,2131.9,2.67782232]
[1770551930610,0.002,2132.6,2131.9,1.50515944]
[1770551930787,0.002,2132.6,2131.8,1.17368074]
[1770551933215,0.002,2132.6,2131.9,1.50515944]
[1770551936926,0.002,2132.6,2131.8,1.17368074]
[1770551936927,0.002,2132.6,2131.8,0.001]
[1770551937224,1.51656688,2132.5,2131.8,0.001]
[1770551937423,2.69095479,2132.4,2131.8,0.001]
[1770551940030,1.17439103,2132.4,2131.8,1.50615944]
[1770551940236,0.002,2132.4,2131.8,1.50615944]
[1770551941930,0.002,2132.4,2131.9,2.67782232]
[1770551942429,1.51856688,2132.8,2132.3,1.50515944]
[1770551942430,0.002,2132.8,2132.3,1.50515944]
[1770551942602,0.001,2133.1,2132.4,1.50515944]
[1770551942802,0.001,2133.1,2132.6,1.50515944]
[1770551943011,0.001,2133.1,2132.7,4.78315944]
[1770551943547,1.17300385,2133.1,2132.7,3.278]
[1770551943705,1.1730098,2133.1,2132.5,1.50515944]
[1770551944210,1.1730098,2133.1,2132.5,2.6774782]
[1770551944211,0.001,2133.1,2132.5,2.6774782]
[1770551944405,0.001,2133.1,2132.6,1.50515944]
[1770551946254,0.001,2133.1,2132.7,1.172223]
[1770551949732,0.001,2133.1,2132.8,0.0011]
[1770551949942,0.002,2133.3,2132.9,1.42476057]
[1770551950435,0.002,2133.3,2132.9,2.59687287]
[1770551951135,0.002,2133.3,2132.9,1.42476057]
[1770551951321,0.002,2133.3,2132.9,2.59687245]
[1770551952033,0.002,2133.3,2132.9,2.59686323]
[1770551952747,0.002,2133.3,2132.9,1.42476057]
[1770551953441,0.002,2133.3,2132.8,1.173244]
[1770551953840,0.002,2133.3,2132.8,0.0011]
[1770551955617,0.002,2133.3,2132.5,3.2781]
[1770551955618,1.33648641,2133.3,2132.5,3.2781]
[1770551957327,1.33648641,2133.3,2132.6,1.42337293]
[1770551957328,1.17194824,2133.2,2132.6,1.42337293]
[1770551957734,1.17194824,2133.2,2132.5,3.2781]
[1770551958139,2.50643465,2133.2,2132.5,3.2781]
[1770551958327,1.33448641,2133.1,2132.5,3.2781]
[1770551959338,1.17205813,2133.0,2132.5,3.2781]
[1770551959858,1.17205813,2133.0,2132.5,2.90670072]
[1770551960151,1.33448641,2132.9,2132.0,4.44860423]
[1770551960347,1.33448641,2132.9,2132.1,1.17255013]
[1770551960730,1.33448641,2132.9,2132.0,5.87193863]
[1770551962153,1.17205813,2133.0,2132.0,5.87193863]
[1770551962154,4.68840616,2133.0,2132.1,1.42337293]
[1770551962455,4.68840616,2133.0,2132.2,1.42447293]
[1770551962629,0.001,2132.9,2132.2,1.42447293]
[1770551964456,0.001,2132.9,2132.3,2.59581583]
[1770551964757,0.001,2132.9,2132.4,1.42337293]
[1770551966555,0.001,2132.9,2132.5,4.44933294]
[1770551966935,0.001,2132.9,2132.6,1.42337293]
[1770551969151,0.001,2132.9,2132.6,2.59561169]
[1770551969544,0.002,2133.3,2132.7,1.42337293]
[1770551970955,0.002,2133.3,2132.7,1.46345593]
[1770551971165,0.002,2133.3,2132.9,1.42337293]
[1770551971350,0.002,2133.3,2133.0,3.277]
[1770551972143,0.002,2133.3,2133.0,4.70037293]
[1770551973139,6.0208832,2133.9,2133.0,4.70037293]
[1770551973140,1.17144453,2134.2,2133.2,1.42337293]
[1770551973537,1.17137138,2134.3,2133.2,1.42337293]
[1770551975174,2.50585779,2134.3,2133.2,1.42337293]
[1770551975545,2.50585779,2134.3,2133.4,1.42337293]
[1770551975845,2.50585779,2134.3,2133.5,3.276]
[1770551976846,1.17137138,2134.3,2133.6,1.30850211]
[1770551977047,1.17128935,2134.4,2133.6,1.30850211]
[1770551977670,1.17128935,2134.4,2133.6,2.48022745]
[1770551977869,2.50559418,2134.4,2133.6,2.48022745]
[1770551979652,2.50559418,2134.4,2133.5,4.44776985]
[1770551979653,1.33430483,2134.3,2133.5,4.44776985]
[1770551979847,1.17139911,2134.2,2133.5,4.44776985]
[1770551981274,2.50568292,2134.3,2133.5,5.75627196]
[1770551982050,2.50568292,2134.3,2133.6,1.30850211]
[1770551982569,1.17137809,2134.3,2133.6,1.30850211]
[1770551983872,1.33430483,2134.3,2133.5,4.44776985]
[1770551984261,1.33430483,2134.3,2133.5,3.276]
[1770551985077,1.33430483,2134.3,2133.0,2.48052577]
[1770551985374,1.33430483,2134.3,2132.9,4.58350211]
[1770551985583,1.33430483,2134.3,2132.9,5.75557336]
[1770551985750,1.33430483,2134.1,2132.8,1.17216672]
[1770551985945,1.17139911,2134.2,2132.8,1.17216672]
[1770551985946,1.33430483,2133.9,2132.8,1.17216672]
[1770551986151,1.33430483,2133.9,2133.4,0.0011]
[1770551987259,3.275,2134.0,2133.4,0.0011]
[1770551987457,0.001,2134.1,2133.4,1.30960211]
[1770551987965,0.001,2134.1,2133.5,1.17178345]
[1770551988662,0.001,2134.1,2133.5,2.48028556]
[1770551990048,0.001,2134.1,2133.4,1.17289882]
[1770551990454,1.33530483,2134.1,2133.4,0.0011]
[1770551991689,0.001,2134.1,2133.4,1.17293705]
[1770551991982,0.001,2134.1,2133.4,1.17291104]
[1770551993368,0.001,2134.1,2133.4,0.0011]
[1770551995273,0.001,2134.1,2133.4,1.30960211]
[1770551996679,0.001,2134.1,2133.4,2.48139758]
[1770551998263,1.33530483,2134.1,2133.6,0.0011]
[1770551998592,0.001,2133.9,2133.6,0.0011]
[1770552000266,9.755,2134.3,2133.6,1.30960211]
[1770552001169,6.48,2134.3,2133.7,2.48017572]
[1770552001368,5.00642263,2134.5,2133.7,2.48017572]
[1770552001369,0.32133763,2134.5,2133.8,1.30850211]
[1770552001571,0.32133763,2134.5,2133.8,1.34858511]
[1770552002569,0.32133763,2134.5,2134.2,1.30850211]
[1770552003267,4.68446038,2135.1,2134.4,1.30850211]
[1770552003464,0.0008,2135.1,2134.7,1.34858511]
[1770552003690,0.0008,2135.1,2134.5,3.275]
[1770552003893,0.0008,2135.1,2134.4,1.30850211]
[1770552004290,1.33510483,2135.1,2134.0,1.17149939]
[1770552004491,1.33510483,2135.1,2134.1,1.17145201]
[1770552004793,1.33510483,2135.1,2134.1,1.30850211]
[1770552005002,0.0008,2135.1,2134.5,0.040083]
[1770552005196,0.0008,2135.1,2134.5,2.51981949]
[1770552005392,0.0008,2135.1,2134.5,2.51981744]
[1770552006274,0.0008,2135.1,2134.6,1.31491219]
[1770552006475,0.0008,2135.1,2134.8,0.040083]
[1770552006874,1.52298055,2135.5,2134.8,1.35499519]
[1770552006875,0.35225931,2135.5,2134.8,1.35499519]
[1770552007085,0.35225931,2135.5,2135.1,0.040083]
[1770552007390,0.32942349,2135.5,2135.1,0.040083]
[1770552008380,1.50013626,2135.5,2134.7,1.31491219]
[1770552008604,2.82786223,2135.5,2134.5,5.80119317]
[1770552008782,2.82786223,2135.5,2134.6,1.171157]
[1770552009105,2.82786223,2135.5,2134.5,5.80119012]
[1770552009907,2.82786223,2135.5,2134.5,1.31491219]
[1770552010106,1.32772597,2135.4,2134.5,1.31491219]
[1770552010482,1.32772597,2135.4,2134.5,2.52620999]
[1770552010803,1.32772597,2135.4,2134.5,1.35499519]
[1770552010999,0.001,2135.3,2134.5,2.52622847]
[1770552011206,0.001,2135.3,2134.5,1.35499519]
[1770552011700,1.17179567,2135.3,2134.5,2.52621719]
[1770552012000,1.17179567,2135.3,2134.5,1.35499519]
[1770552013302,1.32772597,2135.2,2134.2,4.44537076]
[1770552013514,2.49863131,2135.1,2134.2,4.44537076]
[1770552013687,2.49863131,2135.1,2134.2,3.274]
[1770552013876,2.49863131,2135.1,2134.2,4.44539742]
[1770552014209,1.17090534,2135.1,2134.4,1.35499519]
[1770552014386,1.17184848,2135.3,2134.7,0.040083]
[1770552017208,0.001,2135.3,2134.6,2.58845761]
[1770552017783,0.001,2135.3,2134.7,1.417278]
[1770552018190,0.001,2135.3,2134.7,1.457361]
[1770552018597,0.001,2135.3,2135.0,0.040083]
[1770552019195,0.001,2135.3,2134.7,1.17112169]
[1770552019543,0.001,2135.3,2134.6,1.417278]
[1770552019816,0.001,2135.3,2134.6,2.58845623]
[1770552021203,0.001,2135.3,2134.6,1.417278]
[1770552021887,1.29561781,2135.3,2134.0,2.58878307]
[1770552022088,1.29561781,2135.3,2134.0,5.50778307]
[1770552022516,1.29561781,2135.3,2134.0,2.919]
[1770552023125,1.29561781,2135.3,2134.5,0.0011]
[1770552023326,1.29461781,2135.1,2134.5,0.0011]
[1770552023492,1.29461781,2134.7,2133.6,0.0011]
[1770552023692,1.29461781,2134.5,2133.6,0.0011]
[1770552025114,1.29461781,2134.5,2133.4,0.0011]
[1770552025301,1.29461781,2134.3,2133.4,0.0011]
[1770552027421,1.29461781,2134.1,2133.4,0.0011]
[1770552027605,1.29461781,2133.9,2133.4,0.0011]
[1770552028139,1.29461781,2133.9,2132.7,1.21229287]
[1770552028140,1.29461781,2133.9,2132.5,2.59068346]
[1770552028291,1.29461781,2133.9,2132.5,0.0011]
[1770552029311,1.29461781,2133.7,2132.5,0.0011]
[1770552030206,1.29461781,2133.7,2132.3,1.269478]
[1770552030725,1.29461781,2133.7,2132.4,1.417278]
[1770552031510,1.29461781,2133.5,2132.4,1.417278]
[1770552031701,1.29461781,2133.3,2132.2,0.0011]
[1770552032022,1.29461781,2133.3,2132.2,1.418378]
[1770552033615,1.17194824,2133.2,2132.3,1.417278]
[1770552034902,1.17194824,2133.2,2132.6,0.0011]
[1770552035825,2.5257471,2133.2,2132.6,0.0011]
[1770552036009,1.35379886,2133.1,2132.6,0.0011]
[1770552036199,1.35379886,2133.1,2132.2,0.0011]
[1770552037930,2.52585699,2133.0,2132.2,0.0011]
[1770552038304,1.35379886,2132.9,2132.2,0.0011]
[1770552040214,1.35379886,2132.7,2132.2,0.0011]
[1770552041137,1.35379886,2132.7,2132.0,0.0011]
[1770552041356,4.44816804,2132.8,2132.0,1.3443296]
[1770552043526,1.35379886,2132.7,2132.0,0.0011]
[1770552044836,1.17227797,2132.6,2132.0,0.0011]
[1770552045206,2.52607683,2132.6,2132.0,0.0011]
[1770552046913,2.52607683,2132.6,2132.2,0.0011]
[1770552048244,1.35379886,2132.5,2132.0,0.0011]
[1770552048556,1.35379886,2132.5,2131.6,0.001]
[1770552048860,1.39388186,2132.5,2131.6,0.001]
[1770552049351,1.39388186,2132.5,2131.2,0.001]
[1770552049352,1.35379886,2132.3,2131.2,0.001]
[1770552049648,1.35379886,2132.1,2131.2,0.001]
[1770552049952,1.35379886,2131.9,2131.2,0.001]
[1770552050125,1.35379886,2131.9,2130.8,0.001]
[1770552051836,1.35379886,2131.7,2130.8,0.001]
[1770552052022,1.35379886,2131.5,2130.8,0.001]
[1770552052226,1.17271789,2131.8,2130.8,1.3442296]
[1770552053934,1.17271789,2131.8,2131.0,1.3432296]
[1770552055231,1.17271789,2131.8,2130.8,0.001]
[1770552055570,1.35379886,2131.7,2130.8,0.001]
[1770552055880,1.35379886,2131.5,2130.8,0.001]
[1770552056037,3.278,2131.4,2130.8,0.001]
[1770552056568,4.63179886,2131.4,2130.8,0.001]
[1770552056939,3.278,2131.4,2130.8,0.001]
[1770552057541,1.17282792,2131.6,2130.8,0.001]
[1770552058071,4.69131169,2131.7,2130.8,2.51749785]
[1770552058365,4.69131169,2131.7,2130.8,1.3442296]
[1770552058543,1.35379886,2131.6,2130.8,0.001]
[1770552059451,1.35379886,2131.6,2131.0,0.001]
[1770552059635,4.69131169,2131.7,2131.0,0.001]
[1770552059636,4.69331169,2131.7,2131.0,0.001]
[1770552060058,3.278,2131.6,2131.0,0.001]
[1770552060256,1.17288294,2131.5,2131.0,0.001]
[1770552062552,4.69153178,2131.6,2131.0,0.001]
[1770552065445,4.45280764,2131.7,2131.0,1.3442296]
[1770552066262,4.45280764,2131.7,2131.0,0.001]
[1770552066461,4.45280764,2131.7,2130.8,0.001]
[1770552066462,1.31855252,2131.6,2130.8,0.001]
[1770552067140,1.31855252,2131.6,2130.7,0.001]
[1770552067141,1.31855252,2131.4,2130.7,0.001]
[1770552067537,1.31855252,2131.4,2130.5,0.001]
[1770552068779,1.17288294,2131.5,2130.5,1.37468363]
[1770552069137,1.17288294,2131.5,2130.6,1.37368363]
[1770552070873,4.45279784,2131.7,2130.9,1.37368363]
[1770552071238,4.45279784,2131.7,2131.0,1.37368363]
[1770552071639,4.45279784,2131.7,2130.8,1.17322691]
[1770552071842,4.45279784,2131.7,2130.9,1.17318922]
[1770552072042,4.45279784,2131.7,2130.8,2.54690938]
[1770552072469,0.002,2131.4,2130.8,2.54690938]
[1770552072861,0.002,2131.4,2130.8,2.54691791]
[1770552073373,0.002,2131.4,2130.9,1.37368363]
[1770552074653,0.002,2131.4,2130.7,0.001]
[1770552074982,0.002,2131.4,2130.7,1.17432129]
[1770552075660,0.002,2131.4,2130.7,0.001]
[1770552075869,1.35892844,2131.4,2130.7,0.001]
[1770552076178,0.002,2131.4,2130.7,1.33363744]
[1770552077450,0.002,2131.4,2130.9,1.33263744]
[1770552078462,0.002,2131.4,2130.7,0.001]
[1770552078665,0.002,2131.4,2130.7,1.17432308]
[1770552079097,0.002,2131.4,2130.7,0.001]
[1770552079766,1.35692844,2131.3,2130.7,0.001]
[1770552079963,3.279,2131.2,2130.7,0.001]
[1770552080278,4.63592844,2131.2,2130.7,0.001]
[1770552080865,3.279,2131.2,2130.7,0.001]
[1770552081787,4.45205208,2131.2,2130.7,0.001]
[1770552083591,5.80898052,2131.2,2130.7,0.001]
[1770552084675,5.80898052,2131.2,2130.9,0.001]
[1770552085094,5.80898052,2131.2,2130.7,0.001]
[1770552085285,5.80898052,2131.2,2130.6,0.001]
[1770552085791,4.45205208,2131.2,2130.6,0.001]
[1770552086797,5.80898052,2131.2,2130.6,0.001]
[1770552086998,4.45205208,2131.2,2130.6,0.001]
[1770552089982,4.45205208,2131.2,2130.6,1.33363744]
[1770552093410,4.45205208,2131.2,2130.6,1.17437659]
[1770552093712,0.002,2131.4,2130.7,1.33263744]
[1770552093918,0.002,2131.4,2130.9,1.33263744]
[1770552094981,0.002,2131.7,2131.2,1.33263744]
[1770552095401,0.002,2131.7,2131.4,1.33263744]
[1770552095587,0.31931713,2131.8,2131.5,1.33263744]
[1770552096193,0.002,2131.9,2131.5,1.27888276]
[1770552096900,1.17433519,2132.5,2131.5,1.27888276]
[1770552097099,0.002,2131.7,2131.5,1.27888276]
[1770552097305,0.002,2131.7,2131.6,2.45171068]
[1770552097702,0.002,2132.5,2131.7,1.27888276]
[1770552097896,0.002,2132.4,2131.7,1.31896576]
[1770552098409,0.002,2132.4,2131.7,1.27888276]
[1770552098583,0.002,2132.4,2131.6,1.17282792]
[1770552099230,0.002,2132.4,2131.7,1.27888276]
[1770552100138,1.30911385,2132.4,2130.9,1.17418939]
[1770552100421,1.30911385,2132.2,2131.1,1.17307597]
[1770552100628,1.30911385,2132.0,2130.9,1.1741842]
[1770552100802,1.30911385,2132.0,2130.9,0.001]
[1770552101002,1.30911385,2132.0,2131.0,1.17315681]
[1770552101203,1.30911385,2132.0,2131.1,1.17310137]
[1770552101729,1.30911385,2132.0,2131.0,1.17311648]
[1770552101914,1.17271789,2131.8,2130.9,0.001]
[1770552102113,1.31111385,2131.7,2130.9,0.001]
[1770552102618,0.002,2131.7,2130.9,0.001]
[1770552103202,0.002,2131.7,2130.9,1.27988276]
[1770552104009,1.17282792,2131.6,2130.9,0.001]
[1770552104613,0.002,2131.5,2130.9,1.27988276]
[1770552105311,1.17266288,2131.9,2130.9,1.27988276]
[1770552105497,0.002,2131.8,2130.9,1.31996576]
[1770552106100,0.002,2131.8,2131.0,2.4520409]
[1770552107003,0.002,2131.8,2131.0,1.17315814]
[1770552108129,0.002,2131.8,2130.9,0.001]
[1770552108331,1.31111385,2131.8,2130.9,0.001]
[1770552109229,1.31111385,2131.8,2131.2,0.001]
[1770552109406,0.002,2131.6,2131.2,0.001]
[1770552109932,0.002,2131.5,2131.2,0.001]
[1770552111213,1.31111385,2131.6,2131.0,0.001]
[1770552111527,0.001,2131.4,2131.0,0.001]
[1770552112222,0.002,2131.6,2131.0,0.001]
[1770552112548,0.001,2131.5,2131.0,0.001]
[1770552112702,0.001,2131.5,2131.0,1.17415814]
[1770552116237,0.001,2131.5,2131.1,1.27888276]
[1770552116445,0.001,2131.5,2131.1,1.31896576]
[1770552116732,0.002,2131.6,2131.1,1.31896576]
[1770552116733,0.002,2131.6,2131.2,1.17304804]
[1770552117234,0.002,2131.6,2131.3,1.27888276]
[1770552118324,0.002,2131.6,2131.2,1.17304804]
[1770552119226,0.002,2131.6,2131.1,1.17309325]
[1770552119227,0.003,2131.6,2131.1,1.17309325]
[1770552119729,0.003,2131.6,2131.1,1.17310076]
[1770552119935,0.003,2131.6,2131.1,1.1731011]
[1770552120353,0.003,2131.6,2131.0,1.17412758]
[1770552121049,0.003,2131.6,2131.0,0.001]
[1770552121934,0.002,2131.6,2131.0,0.001]
[1770552122124,0.002,2131.6,2131.4,0.001]
[1770552123134,0.002,2131.6,2131.0,0.001]
[1770552123330,0.002,2131.6,2130.6,0.001]
[1770552123331,1.30911385,2131.4,2130.6,0.001]
[1770552124450,3.278,2131.5,2130.6,1.17437747]
[1770552124652,3.278,2131.5,2130.6,2.49334323]
[1770552125163,1.17315814,2131.0,2130.3,0.001]
[1770552125453,1.17315814,2131.0,2129.9,0.001]
[1770552125454,1.30911385,2130.6,2128.7,4.69752857]
[1770552125657,1.30911385,2130.2,2128.8,1.17434157]
[1770552125821,1.39487481,2130.3,2129.1,1.17417132]
[1770552126026,3.279,2130.2,2129.0,1.17423383]
[1770552126268,1.29247481,2130.1,2128.9,2.45705119]
[1770552126431,1.29247481,2130.1,2128.9,1.17431405]
[1770552126625,1.29247481,2130.1,2128.8,1.17433869]
[1770552127040,1.29247481,2130.1,2128.9,1.17430747]
[1770552127357,1.17370892,2130.0,2128.7,2.45713868]
[1770552127525,1.17370892,2130.0,2128.7,2.45714948]
[1770552127730,2.46618373,2130.0,2128.7,2.45714948]
[1770552128036,1.29247481,2129.9,2128.7,1.17441234]
[1770552128948,1.29247481,2129.9,2128.7,1.17442505]
[1770552129253,1.29247481,2129.7,2128.6,0.0008]
[1770552129749,3.279,2129.6,2128.6,1.17526306]
[1770552130279,1.29247481,2129.7,2128.6,1.17526306]
[1770552130426,3.279,2129.7,2128.6,2.4580002]